[Event "45th FIDE Olympiad 2024"]
[Site "Budapest"]
[Date "2024.09.13"]
[Round "3.13"]
[White "Fedoseev, Vladimir"]
[Black "Ding, Liren"]
[Result "1/2-1/2"]
[ECO "D02"]
[WhiteElo "2692"]
[BlackElo "2736"]
[Annotator "TA"]
[PlyCount "94"]
[EventDate "2024.09.05"]
[EventType "team-tourn"]
[EventCountry "HUN"]
[SourceTitle "playchess.com"]
[Source "ChessBase"]
[SourceQuality "1"]
[WhiteTeam "Slovenia"]
[BlackTeam "China"]
[WhiteTeamCountry "SLO"]
[BlackTeamCountry "CHN"]
[TimeControl "40/5400+30:1800+30"]

{[%evp 19,94,3,15,15,22,10,13,0,0,0,0,0,0,0,16,15,23,0,0,7,0,-19,-2,-15,-15,-6,-11,-40,-35,-51,-49,-55,-63,-58,-54,-60,-51,-57,-8,-15,-6,-14,-10,-9,-6,-12,-5,-12,-7,-15,-18,-19,-17,-33,-33,-33,-33,-33,-33,-47,-35,-43,-44,-35,-34,-31,-33,-32,-27,-30,-1,-2,0,-20,0,-8,0]} 1. d4 {[%emt 0:00:16]} Nf6 {[%emt 0:00:07]} 2. Bf4 {[%emt 0:00:17]} d5 {[%emt 0:01:04]} 3. Nf3 {[%emt 0:00:28]} c5 {[%emt 0:00:14]} 4. e3 {[%emt 0:00:08]} e6 {[%emt 0:00:08]} 5. Nbd2 {[%emt 0:00:09]} Qb6 {[%emt 0:00:08]} 6. Rb1 {[%emt 0:00:10] D02: 1 d4 d5 2 Nf3 sidelines, including 2...Nf6 3 g3 and 2...Nf6 3 Bf4.} Bd6 {[%emt 0:00:05]} 7. dxc5 {[%emt 0:00:15]} Qxc5 {[%emt 0:00:04]} 8. Bg5 {[%emt 0:00:44]} Be7 {[%emt 0:10:52]} 9. Bd3 {[%emt 0:01:45]} O-O $146 {[%emt 0:01:02]} ({Predecessor:} 9... Nc6 10. O-O O-O 11. c3 h6 12. b4 Qd6 13. Bh4 Qd8 14. a3 b6 15. Qe2 Bb7 {½-½ Xu,Y (2526)-Xu,Y (2496) CHN-chT Div-A 2024 (5.1)}) 10. O-O {[%emt 0:02:09]} h6 {[%emt 0:00:59]} 11. b4 {[%emt 0:09:42]} Qb6 {[%emt 0:10:14]} 12. Bf4 {[%emt 0:01:29]} a5 {[%emt 0:01:16]} (12... Bxb4 $2 13. c3 $18) 13. a3 {[%emt 0:03:49]} axb4 {[%emt 0:00:18]} 14. axb4 {[%emt 0:00:07]} Nc6 {[%emt 0:01:38]} (14... Bxb4 $2 {too greedy.} 15. c3 $18) 15. c3 {[%emt 0:00:30]} Rd8 {[%emt 0:04:34]} 16. b5 {[%emt 0:09:23]} Nb8 {[%emt 0:03:30]} 17. c4 {[%emt 0:05:26]} Nbd7 {[%emt 0:02:44]} 18. h3 {[%emt 0:07:30]} Nc5 {[%emt 0:00:43]} 19. Bc2 {[%emt 0:00:20]} Bd6 {[%emt 0:05:55]} 20. Ne5 {[%emt 0:03:45]} Qc7 {[%emt 0:08:57]} 21. b6 {[%emt 0:00:45]} Qe7 {[%emt 0:01:09]} 22. Qf3 {[%emt 0:09:49]} Ncd7 {[%emt 0:04:24]} 23. Nd3 {[%emt 0:06:08]} e5 {[%emt 0:04:18]} 24. Bg3 {[%emt 0:00:46]} e4 {[%emt 0:02:07]} 25. Bxd6 {[%emt 0:00:15]} Qxd6 {[%emt 0:00:02]} 26. Qf4 {[%emt 0:00:07]} Nxb6 {[%emt 0:00:40]} 27. Qxd6 {[%emt 0:01:19]} Rxd6 {[%emt 0:00:03]} 28. c5 {[%emt 0:00:44]} Rc6 {[%emt 0:00:06]} (28... exd3 $15 {should be considered.} 29. Bxd3 (29. cxd6 $2 {perishes.} Nc4 $19) 29... Ra3) 29. Rxb6 $11 {[%emt 0:00:49]} exd3 {[%emt 0:00:06]} 30. Bxd3 {[%emt 0:00:11]} Rxc5 {[%emt 0:02:43]} 31. Nf3 {[%emt 0:00:20]} Ra3 {[%emt 0:04:59]} 32. Be2 {[%emt 0:05:22]} Rac3 {[%emt 0:03:05]} 33. Nd4 {[%emt 0:02:53]} Rc1 {[%emt 0:00:05]} 34. g4 {[%emt 0:02:45]} Rxf1+ {[%emt 0:01:50]} 35. Bxf1 {[%emt 0:00:54]} Kf8 {[%emt 0:00:04]} 36. f3 {[%emt 0:02:41]} Ke7 {[%emt 0:00:35]} 37. Kf2 {[%emt 0:01:11]} Ne8 {[%emt 0:00:46]} 38. h4 {[%emt 0:01:53]} Nd6 {[%emt 0:00:10]} 39. Bd3 {[%emt 0:02:06]} Kd7 {[%emt 0:06:53]} 40. g5 {[%emt 0:04:27]} hxg5 {[%emt 0:04:34]} 41. hxg5 {[%emt 0:30:09]} Kc7 {[%emt 0:30:20]} 42. Rb3 {[%emt 0:07:37]} Bd7 {[%emt 0:15:51]} 43. g6 {[%emt 0:03:06]} fxg6 {[%emt 0:00:23]} 44. Bxg6 {[%emt 0:00:34]} Nb5 {[%emt 0:00:14]} 45. Ne2 {[%emt 0:00:26]} Nd6 {[%emt 0:00:05]} 46. Nd4 {[%emt 0:05:41]} Nb5 {[%emt 0:00:04]} 47. Ne2 {[%emt 0:00:06]} Nd6 {[%emt 0:00:02]} 1/2-1/2

[Event "45th FIDE Olympiad 2024"]
[Site "Budapest"]
[Date "2024.09.13"]
[Round "3.13"]
[White "Al Maashani, Amer"]
[Black "Tissir, Mohamed"]
[Result "0-1"]
[ECO "B23"]
[WhiteElo "1979"]
[BlackElo "2355"]
[Annotator "RC"]
[PlyCount "66"]
[EventDate "2024.09.05"]
[EventType "team-tourn"]
[EventCountry "HUN"]
[SourceTitle "playchess.com"]
[Source "ChessBase"]
[SourceQuality "1"]
[WhiteTeam "Oman"]
[BlackTeam "Morocco"]
[WhiteTeamCountry "OMN"]
[BlackTeamCountry "MAR"]
[TimeControl "40/5400+30:1800+30"]

1. e4 c5 2. Nc3 Nc6 3. f4 e6 4. Nf3 a6 5. g3 b5 6. Bg2 Bb7 7. O-O Rc8 8. d3 Be7 9. Kh1 d6 10. f5 exf5 11. Nd5 fxe4 12. dxe4 Nf6 13. b3 O-O 14. Bb2 Nxd5 15. exd5 Nb8 16. Nd2 Nd7 17. Ne4 f5 18. Qh5 g6 19. Qh6 Ne5 20. c4 Rf7 21. Bh3 Rc7 22. Qe3 bxc4 23. Bxe5 Bxd5 24. Bc3 Bg5 25. Qe2 Bxe4+ 26. Kg1 Bf6 27. Bxf6 Qxf6 28. bxc4 Qd4+ 29. Qf2 Qxc4 30. Rad1 d5 31. Qb2 d4 32. Qb8+ Kg7 33. g4 Qc3 0-1

[Event "45th FIDE Olympiad 2024"]
[Site "Budapest"]
[Date "2024.09.13"]
[Round "3.14"]
[White "Wei, Yi"]
[Black "Demchenko, Anton"]
[Result "1-0"]
[ECO "C50"]
[WhiteElo "2762"]
[BlackElo "2597"]
[Annotator "TA"]
[PlyCount "99"]
[EventDate "2024.09.05"]
[EventType "team-tourn"]
[EventCountry "HUN"]
[SourceTitle "playchess.com"]
[Source "ChessBase"]
[SourceQuality "1"]
[WhiteTeam "China"]
[BlackTeam "Slovenia"]
[WhiteTeamCountry "CHN"]
[BlackTeamCountry "SLO"]
[TimeControl "40/5400+30:1800+30"]

{[%evp 9,99,12,15,13,24,6,16,20,4,8,51,31,52,41,43,12,16,8,0,0,23,22,48,38,52,53,59,64,59,53,80,46,65,71,64,44,76,41,94,93,117,76,109,88,140,140,153,147,245,250,224,209,198,200,197,197,185,154,210,216,222,209,210,222,199,161,151,150,211,182,190,205,185,177,300,300,377,375,381,356,617,604,662,671,747,729,649,318,791,736,803,794]} 1. e4 {[%emt 0:00:06]} e5 {[%emt 0:00:06]} 2. Nf3 {[%emt 0:00:12]} Nc6 {[%emt 0:00:04]} 3. Bc4 {[%emt 0:00:17]} Nf6 {[%emt 0:00:06]} 4. d3 {[%emt 0:00:20]} Bc5 {[%emt 0:00:12]} 5. a4 {[%emt 0:04:46]} d6 {[%emt 0:05:27]} 6. c3 {[%emt 0:03:44] [#] aiming for b4.} a6 {[%emt 0:00:58]} 7. Bg5 {[%emt 0:00:31]} h6 {[%emt 0:00:22]} 8. Bh4 {[%emt 0:00:13] The position is equal.} Ba7 {[%emt 0:00:14]} 9. Nbd2 {[%emt 0:01:04][%cal Bb1d2,Bd2f1,Bf1e3][%mdl 32]} Ne7 {[%emt 0:00:55]} 10. Bxf6 {[%emt 0:07:13]} gxf6 {[%emt 0:00:28]} 11. d4 {[%emt 0:00:16]} Ng6 {[%emt 0:06:33]} 12. Nf1 {[%emt 0:10:48]} Be6 {[%emt 0:20:46]} 13. Qb3 {[%emt 0:05:46][%csl LRb7,LRe6]} Bxc4 {[%emt 0:07:04]} 14. Qxc4 {[%emt 0:00:30]} exd4 {[%emt 0:00:25]} 15. cxd4 {[%emt 0:14:05]} Qd7 {[%emt 0:12:45]} 16. Ne3 {[%emt 0:08:57]} Qc6 {[%emt 0:03:10]} 17. Rc1 {[%emt 0:14:33]} Qxc4 {[%emt 0:09:11]} 18. Rxc4 {[%emt 0:00:06]} (18. Nxc4 Nf4 $11) 18... c6 {[%emt 0:00:49]} 19. Kd2 {[%emt 0:02:11]} h5 {[%emt 0:03:30]} 20. Rhc1 {[%emt 0:05:01]} Kd7 {[%emt 0:01:43]} 21. g3 {[%emt 0:03:11]} Ne7 {[%emt 0:12:02]} 22. a5 {[%emt 0:02:11]} Rab8 {[%emt 0:02:13]} 23. R1c2 {[%emt 0:03:04] White is more active.} Ke6 {[%emt 0:02:03]} ({Black should try} 23... Rhd8 $14) 24. Nh4 $16 {[%emt 0:02:55]} Rhd8 {[%emt 0:05:34]} 25. Nhg2 {[%emt 0:05:03]} Kd7 {[%emt 0:00:21]} 26. Ra4 $36 {[%emt 0:02:33][%mdl 2048] White is on the roll.} Ng6 {[%emt 0:02:36]} ({Black should play} 26... Rh8) 27. Nf5 {[%emt 0:00:15]} Re8 {[%emt 0:02:34]} 28. Kd3 {[%emt 0:00:06]} b5 {[%emt 0:00:39]} (28... Rec8 $16 29. h4 Rc7) 29. axb6 $18 {[%emt 0:00:11]} Rxb6 {[%emt 0:00:01]} 30. b4 {[%emt 0:04:07]} Reb8 {[%emt 0:00:44]} 31. Nge3 {[%emt 0:00:31] A dynamic duo of knights.} Rxb4 {[%emt 0:00:52]} 32. Rxa6 {[%emt 0:00:12]} Bb6 {[%emt 0:00:19]} 33. Nc4 {[%emt 0:00:36]} Bc7 {[%emt 0:01:08]} (33... Nf8 $16 {was called for.} 34. d5 (34. Ncxd6 Ne6 $18) (34. Nfxd6 Rb3+ 35. Kd2 Bxd4 $11) 34... cxd5 35. exd5 (35. Ncxd6 Ne6 $11) 35... Ng6 36. Nfxd6 (36. Ncxd6 Rb3+ 37. Ke2 Ne7 $16) 36... Ne7) 34. h4 {[%emt 0:01:20]} R4b5 {[%emt 0:00:23]} 35. Ra7 {[%emt 0:00:31]} R8b7 {[%emt 0:00:21]} 36. Rxb7 {[%emt 0:00:33]} Rxb7 {[%emt 0:00:01]} 37. Ng7 {[%emt 0:00:30]} Rb5 {[%emt 0:00:24]} 38. Ra2 {[%emt 0:00:29]} d5 {[%emt 0:00:54]} (38... Ne7 $16 39. Ne3 d5) 39. exd5 {[%emt 0:00:21]} Rxd5 {[%emt 0:00:01]} 40. Ne3 {[%emt 0:00:40]} Rb5 {[%emt 0:00:13]} 41. Ra8 {[%emt 0:09:04]} c5 {[%emt 0:06:25]} (41... Bb6 $142 42. Ke4 Rb4) 42. d5 {[%emt 0:07:44]} (42. Nxh5 c4+ 43. Kxc4 Rxh5 $11) 42... Rb2 {[%emt 0:07:32]} 43. f4 {[%emt 0:02:26]} ({Not} 43. Nxh5 Ne5+ 44. Ke4 Rxf2 $16) 43... Rb3+ {[%emt 0:01:01]} 44. Ke2 {[%emt 0:00:46]} c4 $2 {[%emt 0:04:10]} (44... Bxf4 45. gxf4 Nxf4+ 46. Kf2 Nd3+ 47. Kf3 Ne5+ 48. Ke4 Rb4+ 49. Kf5 Rxh4) 45. Nxh5 {[%emt 0:00:26]} (45. Nxc4 Rxg3 46. Nxh5 Nxf4+ 47. Nxf4 Bxf4 $11) 45... Rb2+ {[%emt 0:00:04]} 46. Kf3 {[%emt 0:00:17]} Rb3 {[%emt 0:00:58]} 47. Nxf6+ {[%emt 0:01:03]} Ke7 {[%emt 0:00:01]} 48. Ra7 {[%emt 0:00:11]} (48. Ng8+ $142 Kd6 49. Ke4 (49. Ra6+ Kd7 $18)) 48... Kd8 $2 {[%emt 0:00:21] [#]} (48... Kxf6 49. Rxc7 Ne7) 49. d6 $1 {[%emt 0:00:54]} Rxe3+ {[%emt 0:00:38]} 50. Kf2 {[%emt 0:00:10] Weighted Error Value: White=0.21 (precise) /Black=0.32.  Mistake:       	---       	Black=7      Inaccurate:     	White=4     	Black=5      OK:         	White=18    	Black=12     Best:        	White=2     	---} 1-0

[Event "45th FIDE Olympiad 2024"]
[Site "Budapest"]
[Date "2024.09.13"]
[Round "3.14"]
[White "Ouakhir, Mehdi Pierre"]
[Black "Salim Mohammed, Salim Al Amri"]
[Result "1/2-1/2"]
[ECO "E32"]
[WhiteElo "2191"]
[BlackElo "1926"]
[Annotator "RC"]
[PlyCount "103"]
[EventDate "2024.09.05"]
[EventType "team-tourn"]
[EventCountry "HUN"]
[SourceTitle "playchess.com"]
[Source "ChessBase"]
[SourceQuality "1"]
[WhiteTeam "Morocco"]
[BlackTeam "Oman"]
[WhiteTeamCountry "MAR"]
[BlackTeamCountry "OMN"]
[TimeControl "40/5400+30:1800+30"]

1. d4 Nf6 2. c4 e6 3. Nc3 Bb4 4. Qc2 O-O 5. e4 d5 6. e5 Ne4 7. Bd3 c5 8. cxd5 exd5 9. Nge2 cxd4 10. Nxd4 Nd7 11. f4 Qh4+ 12. g3 Qh3 13. Bf1 Qh5 14. Bg2 Ndc5 15. O-O Bxc3 16. bxc3 Bh3 17. Be3 f6 18. Bxh3 Qxh3 19. Nb3 b6 20. Nxc5 bxc5 21. c4 fxe5 22. cxd5 Nxg3 23. Rf3 exf4 24. Bxf4 Qg4 25. Rxg3 Qxf4 26. Qxc5 Rae8 27. d6 Re5 28. Qc3 Rg5 29. Rd1 Rxg3+ 30. Qxg3 Qxg3+ 31. hxg3 Rd8 32. Rc1 Rxd6 33. Rc8+ Kf7 34. Rc7+ Kf6 35. Rxa7 Rd2 36. Ra5 g5 37. a4 Kg6 38. Rb5 Rd4 39. a5 Kh5 40. Rb7 Ra4 41. Rxh7+ Kg4 42. Rb7 Kxg3 43. Rb3+ Kh4 44. a6 Rxa6 45. Rb4+ g4 46. Rb3 Ra2 47. Rc3 Rb2 48. Ra3 Rb8 49. Rc3 Rf8 50. Kg2 Rd8 51. Ra3 Rd1 52. Rb3 1/2-1/2

[Event "45th FIDE Olympiad 2024"]
[Site "Budapest"]
[Date "2024.09.13"]
[Round "3.15"]
[White "Subelj, Jan"]
[Black "Bu, Xiangzhi"]
[Result "1/2-1/2"]
[ECO "C01"]
[WhiteElo "2498"]
[BlackElo "2693"]
[Annotator "TA"]
[PlyCount "60"]
[EventDate "2024.09.05"]
[EventType "team-tourn"]
[EventCountry "HUN"]
[SourceTitle "playchess.com"]
[Source "ChessBase"]
[SourceQuality "1"]
[WhiteTeam "Slovenia"]
[BlackTeam "China"]
[WhiteTeamCountry "SLO"]
[BlackTeamCountry "CHN"]
[TimeControl "40/5400+30:1800+30"]

{[%evp 18,60,14,2,10,0,17,9,7,10,14,14,24,15,23,12,20,2,17,0,10,12,11,0,18,12,2,17,5,2,0,0,0,0,4,0,1,0,0,0,0,0,5,3,3]} 1. e4 {[%emt 0:00:09]} e5 {[%emt 0:00:09]} 2. Nf3 {[%emt 0:00:19]} Nf6 {[%emt 0:00:15]} 3. Nxe5 {[%emt 0:00:50]} d6 {[%emt 0:00:04]} 4. Nf3 {[%emt 0:00:20]} Nxe4 {[%emt 0:00:04]} 5. d3 {[%emt 0:00:33]} Nf6 {[%emt 0:00:12]} 6. d4 {[%emt 0:00:08]} d5 {[%emt 0:00:23]} 7. h3 {[%emt 0:02:24]} h6 {[%emt 0:03:15]} 8. Bd3 {[%emt 0:01:17]} Bd6 {[%emt 0:00:06]} 9. O-O {[%emt 0:00:39]} O-O {[%emt 0:00:03]} 10. Nc3 {[%emt 0:01:44]} c6 {[%emt 0:06:56]} 11. Ne5 {[%emt 0:02:59]} c5 {[%emt 0:01:56]} 12. Nb5 {[%emt 0:04:24]} Be7 {[%emt 0:02:41]} 13. dxc5 {[%emt 0:00:54]} Bxc5 {[%emt 0:00:17]} 14. Bf4 {[%emt 0:04:44]} a6 {[%emt 0:03:17]} 15. Nc3 {[%emt 0:02:06]} Nc6 {[%emt 0:00:32]} 16. Nxc6 {[%emt 0:05:10]} bxc6 {[%emt 0:00:04] The position is equal.} 17. Qf3 {[%emt 0:02:51]} Bd6 {[%emt 0:05:40]} 18. Ne2 {[%emt 0:03:57]} a5 {[%emt 0:09:31]} 19. c4 {[%emt 0:03:43]} Bxf4 {[%emt 0:05:39]} 20. Nxf4 {[%emt 0:01:09]} a4 {[%emt 0:00:49]} 21. Rad1 {[%emt 0:08:04]} Rb8 {[%emt 0:12:22][%cal Ba8b8,Bb8b2,Bb2a2][%mdl 32]} 22. cxd5 {[%emt 0:08:23]} cxd5 {[%emt 0:00:35]} 23. Bc2 {[%emt 0:00:39][%cal Bd3c2,Bc2a4,Ba4b3,Bb3d5][%mdl 32]} Rxb2 {[%emt 0:09:58]} 24. Bxa4 {[%emt 0:00:16]} Ba6 {[%emt 0:00:38]} ({Of course not} 24... Rxa2 $6 25. Qb3 Qd6 26. Qxa2 $16) 25. Rfe1 {[%emt 0:00:22]} Rxa2 {[%emt 0:03:55]} 26. Bb3 {[%emt 0:00:16]} Ra3 {[%emt 0:00:48]} 27. Nxd5 {[%emt 0:00:54]} Nxd5 {[%emt 0:00:07]} 28. Qxd5 {[%emt 0:00:39]} (28. Rxd5 $2 {loses.} Qb6 29. Re3 Bb7 $19) 28... Qxd5 {[%emt 0:00:29]} 29. Bxd5 {[%emt 0:00:06]} Rd3 {[%emt 0:00:09]} 30. Rxd3 {[%emt 0:00:06]} Bxd3 {[%emt 0:00:04] An uneventful encounter.   Weighted Error Value: White=0.04 (flawless) /Black=0.05 (flawless) .  OK:         	White=11    	Black=5} 1/2-1/2

[Event "45th FIDE Olympiad 2024"]
[Site "Budapest"]
[Date "2024.09.13"]
[Round "3.15"]
[White "Al Busaidi, Hamood"]
[Black "Moayad, Anas"]
[Result "0-1"]
[ECO "B53"]
[WhiteElo "1881"]
[BlackElo "2016"]
[Annotator "NA RC"]
[PlyCount "78"]
[EventDate "2024.09.05"]
[EventType "team-tourn"]
[EventCountry "HUN"]
[SourceTitle "playchess.com"]
[Source "ChessBase"]
[SourceQuality "1"]
[WhiteTeam "Oman"]
[BlackTeam "Morocco"]
[WhiteTeamCountry "OMN"]
[BlackTeamCountry "MAR"]
[TimeControl "40/5400+30:1800+30"]

1. e4 c5 2. Nf3 d6 3. d4 cxd4 4. Qxd4 Nc6 5. Qe3 g6 6. Be2 Bg7 7. O-O Nf6 8. h3 O-O 9. Rd1 Qc7 10. c4 a6 11. Nc3 e6 12. Rb1 Ne5 13. b3 Nfd7 14. Ba3 Qa5 15. b4 Qc7 16. Nd2 Rd8 17. f4 Nc6 18. Nf3 Ne7 19. Rbc1 b6 20. Bb2 Bb7 21. f5 exf5 22. Nd5 Bxd5 23. cxd5 Qb7 24. Bxg7 Kxg7 25. Qg5 Nf6 26. exf5 Nxf5 27. g4 Re8 28. Bc4 Ne3 29. Rd4 Rac8 30. Rf4 Ne4 31. Qh4 Rxc4 32. Re1 Nxd5 33. g5 Nxf4 34. Qxf4 Qd5 35. h4 Re6 36. h5 Nxg5 37. h6+ Kxh6 38. Qh2+ Kg7 39. Qb2+ Kg8 0-1

[Event "45th FIDE Olympiad 2024"]
[Site "Budapest"]
[Date "2024.09.13"]
[Round "3.16"]
[White "Wang, Yue"]
[Black "Sebenik, Matej"]
[Result "1-0"]
[ECO "B90"]
[WhiteElo "2637"]
[BlackElo "2515"]
[Annotator "TA"]
[PlyCount "43"]
[EventDate "2024.09.05"]
[EventType "team-tourn"]
[EventCountry "HUN"]
[SourceTitle "playchess.com"]
[Source "ChessBase"]
[SourceQuality "1"]
[WhiteTeam "China"]
[BlackTeam "Slovenia"]
[WhiteTeamCountry "CHN"]
[BlackTeamCountry "SLO"]
[TimeControl "40/5400+30:1800+30"]

{[%evp 15,43,1,29,35,25,34,33,25,85,87,90,104,98,80,201,202,246,225,215,217,383,389,629,579,790,794,1503,1430,3553,3227]} 1. e4 {[%emt 0:00:07]} c5 {[%emt 0:00:09]} 2. Nf3 {[%emt 0:00:12]} d6 {[%emt 0:00:06]} 3. d4 {[%emt 0:00:13]} cxd4 {[%emt 0:00:04]} 4. Nxd4 {[%emt 0:00:05]} Nf6 {[%emt 0:00:06]} 5. Nc3 {[%emt 0:00:06]} a6 {[%emt 0:00:05]} 6. Be3 {[%emt 0:01:20]} e5 {[%emt 0:00:08]} 7. Nf3 {[%emt 0:00:11][%cal Bd4f3,Bf3g5,Bg5e6][%mdl 32]} Be7 {[%emt 0:00:25]} 8. Bc4 {[%emt 0:01:27]} Be6 {[%emt 0:07:38]} 9. Bxe6 {[%emt 0:02:13]} fxe6 {[%emt 0:00:03]} 10. Ng5 {[%emt 0:00:12]} Qd7 {[%emt 0:00:08]} 11. Qf3 $1 {[%emt 0:00:07] White is slightly better.} h6 {[%emt 0:07:58]} (11... d5 $11) 12. Qh3 $16 {[%emt 0:02:41] White is more active.} Nc6 {[%emt 0:00:06] [#]} 13. Na4 $1 {[%emt 0:06:55]} (13. Nxe6 $2 Kf7 14. Nd5 Qxe6 $19) 13... Bd8 {[%emt 0:48:05] [#]} (13... Nb4 $2 14. Nb6 Qc6 15. Nxa8 $18 (15. O-O Rb8 $18)) 14. O-O-O $1 $36 {[%emt 0:06:26][%mdl 2048] White is in control.} ({Stronger than} 14. Qxe6+ Qxe6 15. Nxe6 Ba5+ 16. c3 Kf7 $17 (16... Nxe4 17. Nxg7+ Kf7 18. Nh5 $16)) (14. Nxe6 $2 {loses.} Ba5+ (14... Nb4 15. O-O $14) 15. Bd2 Bxd2+ 16. Kxd2 Kf7 $19 (16... Nxe4+ 17. Ke1 $15)) 14... Qe7 {[%emt 0:20:39]} (14... Ba5 $16) 15. Nxe6 $18 {[%emt 0:04:42] Black must now prevent f4.} Ba5 {[%emt 0:01:16][%cal Oe8f7]} 16. f4 {[%emt 0:09:30][%cal Bf2f4,Bf4f5,Bf5g6][%mdl 32]} Kf7 {[%emt 0:00:08]} 17. f5 {[%emt 0:01:09] Bb6 would now be deadly.} Rac8 $2 {[%emt 0:09:43]} (17... Nd8 18. Bb6 Bxb6) 18. Bb6 {[%emt 0:04:19]} Nxe4 $2 {[%emt 0:00:50]} (18... Rb8 19. Qg3 Kg8 20. Bxa5 Nxa5) 19. Bxa5 {[%emt 0:05:06] White is clearly winning.} Nxa5 {[%emt 0:00:07]} 20. Nb6 {[%emt 0:00:06] Prevents Nc4.} Nf6 {[%emt 0:01:44] Inhibits Qh5+.} 21. Qg3 {[%emt 0:02:38]} g5 {[%emt 0:00:45]} 22. fxg6+ {[%emt 0:00:28] Black got outplayed after the opening.   Weighted Error Value: White=0.02 (flawless) /Black=0.85.  Mistake:       	---       	Black=4      Inaccurate:     	---       	Black=2      OK:         	White=4     	Black=4      Best:        	White=2     	---        Strong:       	White=3     	---} 1-0

[Event "45th FIDE Olympiad 2024"]
[Site "Budapest"]
[Date "2024.09.13"]
[Round "3.16"]
[White "Nait, Elasri Brahim"]
[Black "Al Mashikhi, Mohammed Alyan"]
[Result "1-0"]
[ECO "C13"]
[WhiteElo "1994"]
[BlackElo "1959"]
[Annotator "NA RC"]
[PlyCount "119"]
[EventDate "2024.09.05"]
[EventType "team-tourn"]
[EventCountry "HUN"]
[SourceTitle "playchess.com"]
[Source "ChessBase"]
[SourceQuality "1"]
[WhiteTeam "Morocco"]
[BlackTeam "Oman"]
[WhiteTeamCountry "MAR"]
[BlackTeamCountry "OMN"]
[TimeControl "40/5400+30:1800+30"]

1. e4 e6 2. d4 d5 3. Nc3 dxe4 4. Nxe4 Nd7 5. Nf3 Ngf6 6. Bg5 Be7 7. Nxf6+ Bxf6 8. Bxf6 Qxf6 9. c3 O-O 10. Bd3 e5 11. O-O exd4 12. cxd4 Nb6 13. Qc2 Nd5 14. Bxh7+ Kh8 15. Be4 Be6 16. Bxd5 Bxd5 17. Ne5 Qf4 18. Rad1 c6 19. a3 g6 20. Qd2 Qh4 21. Qe3 Kg7 22. Qg3 Qe4 23. Nd7 Rfe8 24. Nc5 Qe2 25. Qc3 b6 26. Nd3 Qg4 27. f3 Re2 28. Nf2 Qg5 29. Rfe1 Rae8 30. Rxe2 Rxe2 31. Kf1 Re3 32. Qc1 f5 33. Re1 Rxe1+ 34. Qxe1 Kf7 35. Nh3 Qh6 36. Qc3 a5 37. Kf2 Qh4+ 38. Ke2 f4 39. Qe1 Qf6 40. Kd3 Qf5+ 41. Kd2 Bxf3 42. Qf2 Be4 43. Qxf4 Bxg2 44. Qxf5+ gxf5 45. Nf4 Be4 46. Ke3 Kf6 47. h4 Kg7 48. Ne2 b5 49. Ng3 Bc2 50. Kf4 Kf6 51. h5 b4 52. axb4 axb4 53. h6 Kg6 54. Nxf5 Kh7 55. Ke5 Bd3 56. Ne7 Kxh6 57. Nxc6 b3 58. d5 Kg5 59. Nd4 Bc4 60. d6 1-0